[Event "Chess House GM-Tourney 2018"]
[Site "Aarhus"]
[Date "2018.02.09"]
[Round "1.4"]
[White "Olsen, Filip Boe"]
[Black "Matthiesen, Martin"]
[Result "1-0"]
[ECO "A40"]
[WhiteElo "2300"]
[BlackElo "2314"]
[Annotator "NA"]
[PlyCount "79"]
[EventDate "2018.??.??"]
[EventType "tourn"]
[EventCountry "DEN"]
[SourceTitle "playchess.com"]
[Source "ChessBase"]
[SourceQuality "1"]
[TimeControl "40/5400+30:1800+30"]

1. d4 {[%emt 0:00:00]} Nf6 {[%emt 0:00:07]} 2. c4 {[%emt 0:00:00]} e6 {[%emt 0:00:06]} 3. g3 {[%emt 0:00:01]} c5 {[%emt 0:02:10]} 4. Nf3 {[%emt 0:05:45]} cxd4 {[%emt 0:00:44]} 5. Nxd4 {[%emt 0:02:08]} d5 {[%emt 0:04:55]} 6. Bg2 {[%emt 0:02:38]} e5 {[%emt 0:03:42]} 7. Nf3 {[%emt 0:03:27]} d4 {[%emt 0:00:30]} 8. O-O {[%emt 0:04:26]} Nc6 {[%emt 0:00:06]} 9. e3 {[%emt 0:07:45]} Be7 {[%emt 0:01:50]} 10. exd4 {[%emt 0:06:07]} exd4 {[%emt 0:00:08]} 11. b3 {[%emt 0:06:02]} O-O {[%emt 0:07:27]} 12. Bb2 {[%emt 0:01:16]} d3 {[%emt 0:15:38]} 13. Nc3 {[%emt 0:07:42]} Bf5 {[%emt 0:07:15]} 14. Qd2 {[%emt 0:11:01]} Qd7 {[%emt 0:12:33]} 15. Rfe1 {[%emt 0:11:55]} Rfe8 {[%emt 0:10:39]} 16. Ne5 {[%emt 0:04:02]} Nxe5 {[%emt 0:00:35]} 17. Rxe5 {[%emt 0:00:09]} Rad8 {[%emt 0:19:18]} 18. Rae1 {[%emt 0:07:46]} b6 {[%emt 0:02:30]} 19. Nb5 {[%emt 0:04:25]} Bc5 {[%emt 0:04:57]} 20. b4 {[%emt 0:02:09]} Bf8 {[%emt 0:00:34]} 21. Nd4 {[%emt 0:01:26]} Bg6 {[%emt 0:01:53]} 22. a3 {[%emt 0:04:24]} Rxe5 {[%emt 0:00:56]} 23. Rxe5 {[%emt 0:00:02]} Rc8 {[%emt 0:00:20]} 24. Qc3 {[%emt 0:03:54]} Bd6 {[%emt 0:01:06]} 25. Re3 {[%emt 0:00:52]} h5 {[%emt 0:01:03]} 26. h4 {[%emt 0:02:06]} Qc7 {[%emt 0:00:44]} 27. Nc6 {[%emt 0:00:41]} Re8 {[%emt 0:01:11]} 28. Rxe8+ {[%emt 0:00:48]} Nxe8 {[%emt 0:00:01]} 29. Qd4 {[%emt 0:00:29]} Nf6 {[%emt 0:00:59]} 30. Nxa7 {[%emt 0:00:32]} Bxg3 {[%emt 0:00:51]} 31. fxg3 {[%emt 0:00:40]} Qxg3 {[%emt 0:00:01]} 32. Qf2 {[%emt 0:00:26]} Qg4 {[%emt 0:00:36]} 33. Bxf6 {[%emt 0:00:34]} gxf6 {[%emt 0:00:08]} 34. Kf1 {[%emt 0:00:29]} Qxc4 {[%emt 0:00:19]} 35. Qd2 {[%emt 0:00:27]} Qxh4 {[%emt 0:00:41]} 36. Nc6 {[%emt 0:00:12]} Kf8 {[%emt 0:00:43]} 37. Qh6+ {[%emt 0:00:39]} Ke8 {[%emt 0:00:01]} 38. Qh8+ {[%emt 0:00:19]} Kd7 {[%emt 0:00:01]} 39. Qd8+ {[%emt 0:00:09]} Ke6 {[%emt 0:00:01]} 40. Qd5# {[%emt 0:00:09]} 1-0

[Event "Chess House GM-Tourney 2018"]
[Site "Aarhus"]
[Date "2018.02.09"]
[Round "1.5"]
[White "Miedema, David"]
[Black "Bjerre, Jonas Buhl"]
[Result "0-1"]
[ECO "E32"]
[WhiteElo "2371"]
[BlackElo "2368"]
[Annotator "NA"]
[PlyCount "76"]
[EventDate "2018.??.??"]
[EventType "tourn"]
[EventCountry "DEN"]
[SourceTitle "playchess.com"]
[Source "ChessBase"]
[SourceQuality "1"]
[TimeControl "40/5400+30:1800+30"]

1. d4 {[%emt 0:00:00]} Nf6 {[%emt 0:00:15]} 2. c4 {[%emt 0:00:00]} e6 {[%emt 0:00:26]} 3. Nc3 {[%emt 0:00:00]} Bb4 {[%emt 0:00:49]} 4. Qc2 {[%emt 0:00:20]} O-O {[%emt 0:01:27]} 5. Nf3 {[%emt 0:00:11]} c5 {[%emt 0:02:38]} 6. dxc5 {[%emt 0:00:05]} Na6 {[%emt 0:00:59]} 7. c6 {[%emt 0:00:48]} bxc6 {[%emt 0:01:17]} 8. e3 {[%emt 0:00:35]} d5 {[%emt 0:05:55]} 9. a3 {[%emt 0:13:38]} Bxc3+ {[%emt 0:02:10]} 10. Qxc3 {[%emt 0:00:09]} Nc5 {[%emt 0:03:39]} 11. Qc2 {[%emt 0:06:05]} Ba6 {[%emt 0:05:34]} 12. b4 {[%emt 0:15:43]} Nce4 {[%emt 0:05:35]} 13. Ne5 {[%emt 0:04:17]} Rc8 {[%emt 0:13:11]} 14. Qa4 {[%emt 0:12:49]} Nxf2 {[%emt 0:14:54]} 15. Qxa6 {[%emt 0:02:48]} Nxh1 {[%emt 0:02:26]} 16. Ra2 {[%emt 0:15:17]} Ne4 {[%emt 0:03:11]} 17. Nf3 {[%emt 0:00:18]} Qf6 {[%emt 0:04:04]} 18. Rc2 {[%emt 0:00:13]} g5 {[%emt 0:06:18]} 19. Bb2 {[%emt 0:02:35]} Qh6 {[%emt 0:03:42]} 20. g3 {[%emt 0:02:38]} g4 {[%emt 0:01:52]} 21. Ne5 {[%emt 0:00:03]} Qxe3+ {[%emt 0:02:14]} 22. Re2 {[%emt 0:00:04]} Qb3 {[%emt 0:02:27]} 23. Qxa7 {[%emt 0:04:30]} c5 {[%emt 0:03:52]} 24. Qe7 {[%emt 0:04:26]} Qa2 {[%emt 0:04:05]} 25. Nd3 {[%emt 0:01:04]} Qb1+ {[%emt 0:00:51]} 26. Nc1 {[%emt 0:00:14]} cxb4 {[%emt 0:02:57]} 27. Qh4 {[%emt 0:02:02]} f6 {[%emt 0:01:38]} 28. Qxg4+ {[%emt 0:00:46]} Kh8 {[%emt 0:00:39]} 29. Rg2 {[%emt 0:07:04]} Nhf2 {[%emt 0:01:36]} 30. Rxf2 {[%emt 0:00:24]} Nxf2 {[%emt 0:00:07]} 31. Qd4 {[%emt 0:00:02]} bxa3 {[%emt 0:01:14]} 32. Bxa3 {[%emt 0:00:19]} Qe4+ {[%emt 0:02:21]} 33. Ne2 {[%emt 0:00:03]} Nd3+ {[%emt 0:00:35]} 34. Kd2 {[%emt 0:00:05]} Ne5 {[%emt 0:01:30]} 35. Qxe4 {[%emt 0:04:50]} dxe4 {[%emt 0:00:04]} 36. Bxf8 {[%emt 0:00:02]} Nxc4+ {[%emt 0:00:53]} 37. Ke1 {[%emt 0:00:28]} Rxf8 {[%emt 0:00:09]} 38. Nf4 {[%emt 0:00:04]} e5 {[%emt 0:01:04]} 0-1

[Event "Chess House GM-Tourney 2018"]
[Site "Aarhus"]
[Date "2018.02.10"]
[Round "2.4"]
[White "Miedema, David"]
[Black "Olsen, Filip Boe"]
[Result "1-0"]
[ECO "D85"]
[WhiteElo "2371"]
[BlackElo "2300"]
[Annotator "NA"]
[PlyCount "59"]
[EventDate "2018.??.??"]
[EventType "tourn"]
[EventCountry "DEN"]
[SourceTitle "playchess.com"]
[Source "ChessBase"]
[SourceQuality "1"]
[TimeControl "40/5400+30:1800+30"]

1. d4 {[%emt 0:10:47]} Nf6 {[%emt 0:00:12]} 2. c4 {[%emt 0:00:12]} g6 {[%emt 0:00:14]} 3. Nc3 {[%emt 0:00:14]} d5 {[%emt 0:00:10]} 4. cxd5 {[%emt 0:00:31]} Nxd5 {[%emt 0:00:16]} 5. e4 {[%emt 0:00:04]} Nxc3 {[%emt 0:00:10]} 6. bxc3 {[%emt 0:00:03]} Bg7 {[%emt 0:00:17]} 7. Nf3 {[%emt 0:01:10]} O-O {[%emt 0:00:12]} 8. Be3 {[%emt 0:00:29]} c5 {[%emt 0:00:13]} 9. Rc1 {[%emt 0:01:15]} Qa5 {[%emt 0:00:18]} 10. Qd2 {[%emt 0:00:05]} Rd8 {[%emt 0:00:35]} 11. Be2 {[%emt 0:01:59]} Nc6 {[%emt 0:04:47]} 12. d5 {[%emt 0:02:00]} e6 {[%emt 0:01:05]} 13. c4 {[%emt 0:03:39]} Qxd2+ {[%emt 0:00:36]} 14. Kxd2 {[%emt 0:04:04]} Nd4 {[%emt 0:08:40]} 15. Rhd1 {[%emt 0:09:19]} b6 {[%emt 0:08:00]} 16. Bxd4 {[%emt 0:02:05]} cxd4 {[%emt 0:01:04]} 17. Ke1 {[%emt 0:01:05]} e5 {[%emt 0:01:28]} 18. c5 {[%emt 0:01:10]} bxc5 {[%emt 0:03:36]} 19. Rxc5 {[%emt 0:00:57]} f5 {[%emt 0:10:04]} 20. Bc4 {[%emt 0:05:47]} fxe4 {[%emt 0:19:14]} 21. Ng5 {[%emt 0:15:03]} h6 {[%emt 0:05:06]} 22. d6+ {[%emt 0:02:24]} Kf8 {[%emt 0:00:45]} 23. Nf7 {[%emt 0:14:26]} Rd7 {[%emt 0:03:32]} 24. Rb1 {[%emt 0:07:20]} Ba6 {[%emt 0:19:04]} 25. Bxa6 {[%emt 0:01:23]} Rxf7 {[%emt 0:02:13]} 26. Rc7 {[%emt 0:00:10]} Bf6 {[%emt 0:03:08]} 27. Rbb7 {[%emt 0:00:19]} Rg7 {[%emt 0:00:26]} 28. Bc4 {[%emt 0:01:04]} Rd8 {[%emt 0:03:54]} 29. Rf7+ {[%emt 0:00:43]} Ke8 {[%emt 0:00:53]} 30. Bb5+ {[%emt 0:00:12]} 1-0

[Event "Chess House GM-Tourney 2018"]
[Site "Aarhus"]
[Date "2018.02.10"]
[Round "2.5"]
[White "Bjerre, Jonas Buhl"]
[Black "Thogersen, Rasmus"]
[Result "0-1"]
[ECO "B52"]
[WhiteElo "2368"]
[BlackElo "2334"]
[Annotator "NA"]
[PlyCount "92"]
[EventDate "2018.??.??"]
[EventType "tourn"]
[EventCountry "DEN"]
[SourceTitle "playchess.com"]
[Source "ChessBase"]
[SourceQuality "1"]
[TimeControl "40/5400+30:1800+30"]

1. e4 {[%emt 0:00:00]} c5 {[%emt 0:00:05]} 2. Nf3 {[%emt 0:00:00]} d6 {[%emt 0:00:06]} 3. Bb5+ {[%emt 0:00:05]} Bd7 {[%emt 0:00:29]} 4. Bxd7+ {[%emt 0:00:13]} Nxd7 {[%emt 0:00:07]} 5. O-O {[%emt 0:00:30]} Ngf6 {[%emt 0:00:07]} 6. Qe2 {[%emt 0:00:42]} e6 {[%emt 0:03:41]} 7. c4 {[%emt 0:00:50]} Be7 {[%emt 0:03:08]} 8. b3 {[%emt 0:00:36]} O-O {[%emt 0:01:22]} 9. Bb2 {[%emt 0:00:41]} a6 {[%emt 0:03:19]} 10. d4 {[%emt 0:01:06]} cxd4 {[%emt 0:01:28]} 11. Nxd4 {[%emt 0:00:15]} Rc8 {[%emt 0:03:07]} 12. Nc3 {[%emt 0:01:47]} Re8 {[%emt 0:02:40]} 13. Rad1 {[%emt 0:02:15]} Qa5 {[%emt 0:07:54]} 14. f4 {[%emt 0:10:49]} Rc7 {[%emt 0:11:56]} 15. Rfe1 {[%emt 0:12:25]} Qh5 {[%emt 0:03:46]} 16. Qxh5 {[%emt 0:09:41]} Nxh5 {[%emt 0:00:07]} 17. g3 {[%emt 0:03:20]} h6 {[%emt 0:15:01]} 18. e5 {[%emt 0:09:08]} dxe5 {[%emt 0:05:54]} 19. fxe5 {[%emt 0:01:03]} Rd8 {[%emt 0:02:33]} 20. Nf3 {[%emt 0:07:44]} g5 {[%emt 0:02:16]} 21. Ne4 {[%emt 0:03:02]} g4 {[%emt 0:06:05]} 22. Nh4 {[%emt 0:02:31]} b5 {[%emt 0:03:34]} 23. Bc3 {[%emt 0:06:34]} Rb8 {[%emt 0:02:58]} 24. Ba5 {[%emt 0:04:02]} Ra7 {[%emt 0:00:51]} 25. Nd6 {[%emt 0:04:53]} bxc4 {[%emt 0:06:04]} 26. Nxc4 {[%emt 0:00:40]} Ng7 {[%emt 0:03:00]} 27. Re4 {[%emt 0:01:23]} h5 {[%emt 0:01:27]} 28. Kg2 {[%emt 0:01:01]} Bxh4 {[%emt 0:05:39]} 29. gxh4 {[%emt 0:00:04]} Nf5 {[%emt 0:00:16]} 30. h3 {[%emt 0:01:17]} Nc5 {[%emt 0:01:05]} 31. Rf4 {[%emt 0:01:20]} Nxh4+ {[%emt 0:00:21]} 32. Kf2 {[%emt 0:00:45]} Ng6 {[%emt 0:00:35]} 33. Rfd4 {[%emt 0:00:39]} gxh3 {[%emt 0:04:50]} 34. Kg3 {[%emt 0:02:21]} Rb5 {[%emt 0:00:46]} 35. Bd8 {[%emt 0:02:08]} a5 {[%emt 0:00:39]} 36. Bf6 {[%emt 0:01:35]} a4 {[%emt 0:00:17]} 37. Rd8+ {[%emt 0:04:01]} Kh7 {[%emt 0:00:02]} 38. Nd6 {[%emt 0:02:10]} Rb4 {[%emt 0:00:10]} 39. Rc8 {[%emt 0:01:42]} Rg4+ {[%emt 0:00:10]} 40. Kxh3 {[%emt 0:00:49]} axb3 {[%emt 0:31:31]} 41. Rxc5 {[%emt 0:10:22]} Nf4+ {[%emt 0:00:00]} 42. Kh2 {[%emt 0:00:44]} Rxa2+ {[%emt 0:00:00]} 43. Kh1 {[%emt 0:00:22]} Rgg2 {[%emt 0:00:00]} 44. Rc8 {[%emt 0:06:19]} Rh2+ {[%emt 0:00:00]} 45. Kg1 {[%emt 0:00:04]} Rag2+ {[%emt 0:00:00]} 46. Kf1 {[%emt 0:00:04]} Rh1# 0-1

[Event "Chess House GM-Tourney 2018"]
[Site "Aarhus"]
[Date "2018.02.13"]
[Round "4"]
[White "Miedema, David"]
[Black "Teplyi, Igor"]
[Result "1-0"]
[ECO "E10"]
[WhiteElo "2371"]
[BlackElo "2402"]
[Annotator "ChessBase"]
[PlyCount "139"]
[EventDate "2018.??.??"]
[EventType "tourn"]
[EventCountry "DEN"]
[SourceTitle "playchess.com"]
[Source "ChessBase"]
[SourceQuality "1"]
[TimeControl "40/5400+30:1800+30"]

1. d4 {[%emt 0:00:00]} Nf6 {[%emt 0:01:35]} 2. c4 {[%emt 0:00:00]} e6 {[%emt 0:00:06]} 3. Nf3 {[%emt 0:00:02]} a6 {[%emt 0:01:59]} 4. Nc3 {[%emt 0:02:46]} d5 {[%emt 0:00:07]} 5. cxd5 {[%emt 0:12:22]} exd5 {[%emt 0:00:29]} 6. Bg5 {[%emt 0:00:04]} Be6 {[%emt 0:00:41]} 7. e3 {[%emt 0:01:11]} Nbd7 {[%emt 0:00:09]} 8. Be2 {[%emt 0:04:42]} Bd6 {[%emt 0:02:19]} 9. O-O {[%emt 0:00:14]} O-O {[%emt 0:01:03]} 10. e4 {[%emt 0:05:31]} dxe4 {[%emt 0:01:23]} 11. Nxe4 {[%emt 0:00:15]} Be7 {[%emt 0:02:16]} 12. Bd3 {[%emt 0:14:41]} Re8 {[%emt 0:12:04]} 13. Ng3 {[%emt 0:10:42]} c6 {[%emt 0:12:59]} 14. Nf5 {[%emt 0:10:19]} Bxf5 {[%emt 0:01:25]} 15. Bxf5 {[%emt 0:00:38]} Nd5 {[%emt 0:01:35]} 16. Bxe7 {[%emt 0:06:44]} Rxe7 {[%emt 0:02:07]} 17. Re1 {[%emt 0:06:11]} Rxe1+ {[%emt 0:02:46]} 18. Qxe1 {[%emt 0:00:03]} N7f6 {[%emt 0:00:25]} 19. Qd2 {[%emt 0:00:45]} Qd6 {[%emt 0:01:17]} 20. Re1 {[%emt 0:00:45]} Rd8 {[%emt 0:01:10]} 21. g3 {[%emt 0:02:56]} Kf8 {[%emt 0:11:10]} 22. Qc1 {[%emt 0:03:23]} Nc7 {[%emt 0:15:36]} 23. Qc4 {[%emt 0:06:50]} g6 {[%emt 0:04:43]} 24. Bc2 {[%emt 0:00:39]} Nfd5 {[%emt 0:01:59]} 25. a3 {[%emt 0:00:27]} Kg7 {[%emt 0:01:37]} 26. Qb3 {[%emt 0:01:38]} Qf6 {[%emt 0:02:33]} 27. Kg2 {[%emt 0:01:07]} Nb5 {[%emt 0:02:21]} 28. Re4 {[%emt 0:01:32]} Ndc7 {[%emt 0:02:05]} 29. Rf4 {[%emt 0:00:54]} Qe6 {[%emt 0:00:37]} 30. Qd3 {[%emt 0:00:37]} Nd5 {[%emt 0:00:47]} 31. Re4 {[%emt 0:00:19]} Qf6 {[%emt 0:00:42]} 32. h4 {[%emt 0:00:57]} Nd6 {[%emt 0:00:57]} 33. Re5 {[%emt 0:00:11]} Nc7 {[%emt 0:01:06]} 34. Bb3 {[%emt 0:01:05]} Nf5 {[%emt 0:00:34]} 35. Qe4 {[%emt 0:00:42]} Nb5 {[%emt 0:00:46]} 36. d5 {[%emt 0:00:39]} Nbd6 {[%emt 0:05:09]} 37. Qb4 {[%emt 0:01:45]} cxd5 {[%emt 0:04:03]} 38. Bxd5 {[%emt 0:00:52]} Ne7 {[%emt 0:00:49]} 39. h5 {[%emt 0:02:06]} h6 {[%emt 0:01:09]} 40. hxg6 {[%emt 0:00:49]} Nxg6 {[%emt 0:30:25]} 41. Rh5 {[%emt 0:06:44]} b5 {[%emt 0:00:00]} 42. Nh4 {[%emt 0:07:25]} Ne7 {[%emt 0:00:00]} 43. Bf3 {[%emt 0:00:55]} Nc4 {[%emt 0:00:00]} 44. b3 {[%emt 0:03:33]} Nd2 {[%emt 0:00:00]} 45. Bb7 {[%emt 0:03:15]} Rd6 {[%emt 0:00:00]} 46. a4 {[%emt 0:02:35]} bxa4 {[%emt 0:00:00]} 47. bxa4 {[%emt 0:02:02]} Qd4 {[%emt 0:00:00]} 48. Qxd4+ {[%emt 0:00:58]} Rxd4 {[%emt 0:00:00]} 49. Re5 {[%emt 0:00:28]} Ng6 {[%emt 0:00:00]} 50. Nf5+ {[%emt 0:04:30]} Kf6 {[%emt 0:00:00]} 51. Ra5 {[%emt 0:00:21]} Rb4 {[%emt 0:00:00]} 52. Bc8 {[%emt 0:00:25]} Ne4 {[%emt 0:04:00]} 53. Rxa6+ {[%emt 0:00:41]} Ke5 {[%emt 0:00:07]} 54. Ra5+ {[%emt 0:01:17]} Kf6 {[%emt 0:00:06]} 55. Ra6+ {[%emt 0:01:00]} Kg5 {[%emt 0:01:41]} 56. Ra5 {[%emt 0:01:23]} Kf6 {[%emt 0:00:32]} 57. Nxh6 {[%emt 0:01:02]} Ne5 {[%emt 0:00:18]} 58. Ra6+ {[%emt 0:00:55]} Ke7 {[%emt 0:00:26]} 59. Bf5 {[%emt 0:01:01]} Nc5 {[%emt 0:02:57]} 60. Ra7+ {[%emt 0:00:04]} Rb7 {[%emt 0:01:13]} 61. Rxb7+ {[%emt 0:00:46]} Nxb7 {[%emt 0:00:04]} 62. Bc2 {[%emt 0:00:09]} Kd6 {[%emt 0:00:33]} 63. f4 {[%emt 0:00:18]} Nc4 {[%emt 0:00:08]} 64. Bb3 {[%emt 0:00:32]} Nca5 {[%emt 0:01:14]} 65. Bxf7 {[%emt 0:00:46]} Ke7 {[%emt 0:00:21]} 66. Bg6 {[%emt 0:00:22]} Nc4 {[%emt 0:00:27]} 67. Kf2 {[%emt 0:00:36]} Nc5 {[%emt 0:00:23]} 68. Bc2 {[%emt 0:00:11]} Nb2 {[%emt 0:00:10]} 69. a5 {[%emt 0:00:34]} Nc4 {[%emt 0:00:16]} 70. a6 {[%emt 0:00:08]} 1-0